[Event "44th Chess Olympiad Open 2022"]
[Site "Chennai"]
[Date "2022.08.05"]
[Round "7.73"]
[White "Wojciechowski, Paul"]
[Black "Ashraf, Ahmed Ramadan"]
[Result "0-1"]
[ECO "C84"]
[WhiteElo "1944"]
[BlackElo "1916"]
[Annotator "TA"]
[PlyCount "90"]
[EventDate "2022.07.29"]
[EventType "team-tourn"]
[EventCountry "IND"]
[SourceTitle "playchess.com"]
[Source "ChessBase"]
[SourceQuality "1"]
[WhiteTeam "Channel Islands"]
[BlackTeam "Egypt"]
[WhiteTeamCountry "JCI"]
[BlackTeamCountry "EGY"]
[TimeControl "40/5400+30:1800+30"]

{[%evp 15,90,23,33,4,0,0,14,-32,-32,-27,-23,-27,-29,-35,-22,-21,0,0,44,23,19,25,15,25,29,24,51,26,37,22,33,0,37,0,45,0,32,0,2,-31,-10,-13,-10,-15,-1,-17,0,-49,-67,-58,-66,-148,-109,-112,-117,-117,-43,-43,-27,-22,0,-87,-193,-423,-358,-747,-746,-1576,-1153,-29968,-29969,-29969,-29970,-29968,-29969,-29947,-5389]} 1. e4 {[%emt 0:00:06]} e5 {[%emt 0:00:29]} 2. Nf3 {[%emt 0:00:35]} Nc6 {[%emt 0:00:03]} 3. Bb5 {[%emt 0:00:05]} a6 {[%emt 0:00:15]} 4. Ba4 {[%emt 0:00:04]} Nf6 {[%emt 0:00:07]} 5. d4 {[%emt 0:01:04]} b5 {[%emt 0:02:22]} 6. Bb3 {[%emt 0:00:08]} Be7 {[%emt 0:08:38]} 7. O-O {[%emt 0:06:23]} d6 {[%emt 0:00:00]} 8. c3 {[%emt 0:34:43]} Bg4 {[%emt 0:00:00]} (8... Nxe4 $2 9. Bd5 Bb7 10. Bxe4 $18) 9. d5 {[%emt 0:05:13] C84: Closed Ruy Lopez: Unusual White 6th moves.} Na5 {[%emt 0:00:00]} 10. Bc2 {[%emt 0:00:04]} O-O {[%emt 0:01:06]} 11. Qd3 {[%emt 0:05:37]} (11. Nbd2 $11) 11... c6 $15 {[%emt 0:01:57]} 12. dxc6 {[%emt 0:00:39]} Nxc6 {[%emt 0:00:19] [#]} (12... Qc7 {keeps more tension.} 13. Rd1 Rfd8 14. h3 Bh5) 13. Nbd2 $146 {[%emt 0:02:34][%cal Bb1d2,Bd2f1,Bf1e3][%mdl 32]} ({Predecessor:} 13. h3 Bh5 14. Nh2 b4 15. Bd2 Bg6 16. Qe2 d5 17. exd5 Bxc2 18. dxc6 Bd3 19. Qf3 {0-1 (33) Ceccaldi,D (1900)-Massoni,M (1830) Bastia 2003}) 13... Qc7 {[%emt 0:00:58]} 14. Re1 {[%emt 0:05:02]} Rac8 {[%emt 0:02:08][%cal Oc6b4]} 15. Nf1 {[%emt 0:05:52]} b4 {[%emt 0:21:05]} (15... Nb4 $5 16. cxb4 Qxc2 17. Qxc2 Rxc2 $15) 16. Ne3 {[%emt 0:02:29]} g6 {[%emt 0:09:27]} 17. Qxa6 {[%emt 0:03:29]} bxc3 {[%emt 0:07:07]} 18. bxc3 {[%emt 0:00:09]} Bxf3 {[%emt 0:05:24]} 19. gxf3 {[%emt 0:00:10]} Nb8 {[%emt 0:00:21][%csl LRa6,LRc3][%cal Bc6b8,Bb8d7,Bd7c5,Bc5e6,Be6f4][%mdl 32]} 20. Qd3 {[%emt 0:02:40]} Nbd7 {[%emt 0:02:06]} 21. Bd2 {[%emt 0:02:11]} Nc5 {[%emt 0:01:14]} 22. Qe2 {[%emt 0:00:25]} Qd7 {[%emt 0:00:50]} 23. Qf1 {[%emt 0:03:45]} Bd8 {[%emt 0:01:20][%cal Be7d8,Bd8b6,Bb6d4][%mdl 32]} 24. c4 {[%emt 0:00:58]} Ne6 {[%emt 0:00:52]} 25. Rec1 {[%emt 0:01:53]} Nf4 {[%emt 0:01:25]} 26. Bd1 {[%emt 0:01:14]} Bb6 {[%emt 0:00:39]} 27. Ng4 {[%emt 0:01:08]} Nxg4 {[%emt 0:04:35]} 28. fxg4 {[%emt 0:00:04]} Ne6 {[%emt 0:01:13]} 29. Rab1 {[%emt 0:01:47]} Bd4 {[%emt 0:00:34][%mdl 1024] Black has compensation.} 30. Qe2 {[%emt 0:03:03]} Qe7 {[%emt 0:01:03]} 31. Rb3 {[%emt 0:01:12]} (31. a4 $11 {might be stronger.}) 31... Ra8 {[%emt 0:01:01]} 32. a3 {[%emt 0:01:04]} Bc5 {[%emt 0:01:39]} 33. Be3 {[%emt 0:01:37]} ({White should try} 33. Qd3 $1 $15) 33... Rxa3 {[%emt 0:01:25]} 34. Bxc5 {[%emt 0:01:17]} Rxb3 {[%emt 0:00:16]} 35. Bxd6 {[%emt 0:00:25] [#]} Qxd6 {[%emt 0:02:18]} 36. Bxb3 {[%emt 0:00:04][%cal Oc4c5]} Qa3 {[%emt 0:00:33]} 37. Qe3 {[%emt 0:03:51]} Rd8 {[%emt 0:00:37]} 38. Bc2 {[%emt 0:04:28] [#]} (38. c5 $11) 38... Qb2 $1 $17 {[%emt 0:00:49] Threatens to win with ...Rd4. Black is more active.} 39. Ba4 $2 {[%emt 0:01:09]} (39. c5 {was called for.} Nxc5 40. Rd1) 39... Nf4 {[%emt 0:00:56] aiming for ...Ne2+.} 40. Rd1 $2 {[%emt 0:00:47]} (40. Rf1) 40... Ra8 $19 {[%emt 0:01:32]} 41. Bb5 {[%emt 0:05:34]} Ra1 {[%emt 0:02:52]} 42. Rf1 {[%emt 0:01:25]} Rxf1+ {[%emt 0:01:42] Black mates.} 43. Kxf1 {[%emt 0:00:04]} Qb1+ {[%emt 0:00:12]} 44. Qe1 {[%emt 0:00:14]} Qd3+ {[%emt 0:00:03]} 45. Kg1 {[%emt 0:00:43]} Qf3 {[%emt 0:01:36] Weighted Error Value: White=0.71/Black=0.22 (precise)} (45... Qh3 $142 46. Qf1 Qxg4+ 47. Kh1 Qf3+ 48. Kg1 Ne2+ 49. Qxe2 Qxe2 50. Bc6 Qxc4 51. Bd5 Qc1+ 52. Kg2 Qg5+ 53. Kh1 Qg4 54. Bb7 h5 55. f3 Qxf3+ 56. Kg1 Qd1+ 57. Kf2 Qc2+ 58. Kg1 Qb1+ 59. Kf2 Qxb7 60. Ke3 Qb3+ 61. Kd2 h4 62. h3 Qxh3 63. Kc2 Qg3 64. Kd2 h3 65. Kc2 h2 66. Kd2 h1=Q 67. Kc2 Qhh2+ 68. Kd1 Qgg1#) 0-1

[Event "44th Chess Olympiad Open 2022"]
[Site "Chennai"]
[Date "2022.08.05"]
[Round "7.73"]
[White "Forbes, Garry"]
[Black "Mujahid Bin Yazeed"]
[Result "1-0"]
[ECO "A83"]
[WhiteElo "1908"]
[BlackElo "1418"]
[Annotator "NA COMBH"]
[PlyCount "51"]
[EventDate "2022.07.29"]
[EventType "team-tourn"]
[EventCountry "IND"]
[SourceTitle "playchess.com"]
[Source "ChessBase"]
[SourceQuality "1"]
[WhiteTeam "Channel Islands"]
[BlackTeam "Maldives"]
[WhiteTeamCountry "JCI"]
[BlackTeamCountry "MDV"]
[TimeControl "40/5400+30:1800+30"]

1. d4 {[%emt 0:00:02]} f5 {[%emt 0:00:09]} 2. Nc3 {[%emt 0:00:03]} Nf6 {[%emt 0:00:14]} 3. Bg5 {[%emt 0:00:05]} e6 {[%emt 0:00:14]} 4. e4 {[%emt 0:02:02]} fxe4 {[%emt 0:00:26]} 5. Nxe4 {[%emt 0:04:18]} Be7 {[%emt 0:01:17]} 6. Bxf6 {[%emt 0:16:05]} Bxf6 {[%emt 0:00:11]} 7. Qd2 {[%emt 0:00:13]} d5 {[%emt 0:06:34]} 8. Ng3 {[%emt 0:13:31]} c5 {[%emt 0:04:52]} 9. c3 {[%emt 0:01:22]} cxd4 {[%emt 0:01:40]} 10. cxd4 {[%emt 0:00:02]} Qb6 {[%emt 0:00:53]} 11. Nf3 {[%emt 0:00:28]} Nc6 {[%emt 0:04:32]} 12. Rd1 {[%emt 0:03:28]} a5 {[%emt 0:05:26]} 13. a3 {[%emt 0:01:39]} a4 {[%emt 0:01:42]} 14. Be2 {[%emt 0:00:15]} Na5 {[%emt 0:07:54]} 15. Nh5 {[%emt 0:12:02]} Bd7 {[%emt 0:09:19]} 16. O-O {[%emt 0:07:20]} O-O {[%emt 0:06:17]} 17. Nxf6+ {[%emt 0:04:31]} Rxf6 {[%emt 0:06:59]} 18. Ne5 {[%emt 0:00:09]} Bb5 {[%emt 0:02:13]} 19. Qb4 {[%emt 0:03:12]} Nc4 {[%emt 0:06:33]} 20. Nxc4 {[%emt 0:00:05]} dxc4 {[%emt 0:00:06]} 21. Bxc4 {[%emt 0:00:01]} Ra5 {[%emt 0:00:54]} 22. Rc1 {[%emt 0:23:44]} h6 {[%emt 0:02:38]} 23. Bd3 {[%emt 0:01:46]} g6 {[%emt 0:04:43]} 24. Rc8+ {[%emt 0:01:27]} Kg7 {[%emt 0:00:29]} 25. Rfc1 {[%emt 0:02:04]} Rf7 {[%emt 0:00:44]} 26. R1c5 {[%emt 0:01:46]} 1-0

[Event "44th Chess Olympiad Open 2022"]
[Site "Chennai"]
[Date "2022.08.05"]
[Round "7.74"]
[White "Ayyad, Maher"]
[Black "Ebosse Kingue Victor Patrick"]
[Result "1-0"]
[ECO "E65"]
[WhiteElo "2101"]
[BlackElo "2054"]
[Annotator "TA"]
[PlyCount "71"]
[EventDate "2022.07.29"]
[EventType "team-tourn"]
[EventCountry "IND"]
[SourceTitle "playchess.com"]
[Source "ChessBase"]
[SourceQuality "1"]
[WhiteTeam "Brunei"]
[BlackTeam "CMR"]
[WhiteTeamCountry "BRN"]
[TimeControl "40/5400+30:1800+30"]

{[%evp 18,71,56,54,83,60,52,73,58,68,62,60,104,110,112,120,118,118,158,138,158,160,202,205,188,158,158,-231,231,147,157,136,201,196,293,287,287,289,291,283,409,408,406,406,400,400,537,512,1791,394,1791,1773,29983,29984,29985,647]} 1. d4 {[%emt 0:00:11]} Nf6 {[%emt 0:00:07]} 2. Nf3 {[%emt 0:00:02]} g6 {[%emt 0:00:16]} 3. g3 {[%emt 0:00:04]} Bg7 {[%emt 0:00:07]} 4. Bg2 {[%emt 0:00:05]} O-O {[%emt 0:00:06]} 5. O-O {[%emt 0:00:05]} d6 {[%emt 0:00:13]} 6. b3 {[%emt 0:00:05]} c5 {[%emt 0:00:15]} 7. Bb2 {[%emt 0:00:15]} cxd4 {[%emt 0:01:33]} 8. Nxd4 {[%emt 0:00:14]} a6 {[%emt 0:01:23]} 9. c4 {[%emt 0:00:13]} Qc7 {[%emt 0:02:39]} 10. Nc3 {[%emt 0:00:31]} e6 {[%emt 0:01:46] E65: King's Indian: Fianchetto: 6...c5 7 0-0 without d5 by White.} 11. Rc1 {[%emt 0:00:34]} Nc6 {[%emt 0:02:57] [#]} 12. Nd5 $1 {[%emt 0:10:41]} Nxd5 {[%emt 0:09:41] White is better.} (12... exd5 13. cxd5) 13. cxd5 {[%emt 0:00:24]} exd5 {[%emt 0:00:23]} 14. Bxd5 {[%emt 0:00:44]} Bd7 {[%emt 0:01:09]} 15. Nxc6 {[%emt 0:01:45] [#]} Bxc6 $146 {[%emt 0:00:55]} ({Predecessor:} 15... bxc6 16. Bxg7 Kxg7 17. Qd4+ Kg8 18. Rfd1 Qa5 19. Bf3 Qxa2 20. Qxd6 Be6 21. b4 Bd5 {1-0 (51) Popchev,M (2235)-Zotova,A (2007) Novi Sad 2021}) 16. Bxg7 {[%emt 0:00:08]} Kxg7 {[%emt 0:00:35]} 17. Qd4+ {[%emt 0:00:51]} f6 {[%emt 0:00:53]} 18. Rfd1 {[%emt 0:00:16][%cal Bf1d1,Bd1d3,Bd3f3][%mdl 32]} Rfd8 {[%emt 0:03:02]} 19. Rd3 {[%emt 0:01:50]} Qd7 {[%emt 0:04:16]} 20. Rf3 {[%emt 0:04:14]} Rf8 {[%emt 0:00:33]} 21. Rfc3 $36 {[%emt 0:01:29][%cal Rd5c6][%mdl 2048] Black is under strong pressure.} Rfc8 {[%emt 0:03:28] [#]} 22. Qb6 $2 {[%emt 0:02:08] White is much more active.} Qc7 {[%emt 0:04:49][%mdl 8192]} (22... Bxd5 $19 {avoids the disaster.} 23. Rc7 Kg8) 23. Qxc7+ {[%emt 0:00:49]} Rxc7 {[%emt 0:00:10]} 24. b4 {[%emt 0:00:34]} ({Much weaker is} 24. Bxc6 $6 Rac8 $14) 24... Rb8 {[%emt 0:05:57]} (24... Re7 $16 25. Bxc6 bxc6) 25. a3 $18 {[%emt 0:03:44]} ({Don't take} 25. Bxc6 $6 Rbc8 $16) 25... Re7 {[%emt 0:07:00]} (25... g5 $142 26. R3c2 (26. Bxc6 Rbc8 $14) 26... Rbc8) 26. Bxc6 {[%emt 0:02:05]} bxc6 {[%emt 0:00:11]} 27. Rxc6 {[%emt 0:00:22]} Rxe2 {[%emt 0:00:13]} 28. Rxa6 {[%emt 0:00:34][%mdl 4096] Endgame KRR-KRR} Ra2 {[%emt 0:07:41]} (28... g5 $142 29. Rxd6 Rb7) 29. Rc7+ {[%emt 0:00:34]} Kh6 {[%emt 0:10:05]} 30. Rxd6 {[%emt 0:05:09]} Rxa3 {[%emt 0:01:03]} 31. Rxf6 {[%emt 0:00:19]} Rxb4 {[%emt 0:11:16]} 32. Rff7 {[%emt 0:00:50]} Rb2 {[%emt 0:04:37]} (32... Rb6 $142 33. Rxh7+ Kg5) 33. Rxh7+ {[%emt 0:01:59]} Kg5 {[%emt 0:00:00]} 34. Rcf7 {[%emt 0:01:03] Against Rf3. Threatens to win with Rf4.} Ra4 {[%emt 0:09:22] Prevents Rf4.} 35. Kg2 {[%emt 0:01:05]} Rc4 {[%emt 0:07:12]} 36. Kh3 {[%emt 0:00:32] Weighted Error Value: White=0.36/Black=0.83} (36. h4+ $142 Rxh4 37. gxh4+ Kg4 38. Rh6 g5 39. Rg7 Kf5 40. hxg5 Ke5 41. Rf6) 1-0

[Event "44th Chess Olympiad Open 2022"]
[Site "Chennai"]
[Date "2022.08.05"]
[Round "7.74"]
[White "Amba Oyon Marius Claude"]
[Black "Ayyad, Husain"]
[Result "0-1"]
[ECO "C96"]
[WhiteElo "1938"]
[BlackElo "2209"]
[Annotator "NA RC"]
[PlyCount "136"]
[EventDate "2022.07.29"]
[EventType "team-tourn"]
[EventCountry "IND"]
[SourceTitle "playchess.com"]
[Source "ChessBase"]
[SourceQuality "1"]
[WhiteTeam "CMR"]
[BlackTeam "Brunei"]
[BlackTeamCountry "BRN"]
[TimeControl "40/5400+30:1800+30"]

1. e4 {[%emt 0:00:08]} e5 {[%emt 0:00:07]} 2. Nf3 {[%emt 0:00:16]} Nc6 {[%emt 0:00:06]} 3. Bb5 {[%emt 0:00:14]} a6 {[%emt 0:00:11]} 4. Ba4 {[%emt 0:00:14]} Nf6 {[%emt 0:00:38]} 5. O-O {[%emt 0:00:18]} Be7 {[%emt 0:00:02]} 6. Re1 {[%emt 0:00:32]} b5 {[%emt 0:00:05]} 7. Bb3 {[%emt 0:00:22]} O-O {[%emt 0:00:12]} 8. c3 {[%emt 0:00:48]} d6 {[%emt 0:00:10]} 9. h3 {[%emt 0:00:32]} Na5 {[%emt 0:00:50]} 10. Bc2 {[%emt 0:00:54]} c5 {[%emt 0:00:05]} 11. d4 {[%emt 0:03:16]} cxd4 {[%emt 0:00:01]} 12. cxd4 {[%emt 0:00:17]} Nc6 {[%emt 0:00:01]} 13. Nc3 {[%emt 0:02:48]} exd4 {[%emt 0:05:45]} 14. Nd5 {[%emt 0:04:49]} Nxd5 {[%emt 0:06:06]} 15. exd5 {[%emt 0:00:20]} Nb4 {[%emt 0:00:02]} 16. Bb3 {[%emt 0:00:29]} d3 {[%emt 0:00:47]} 17. Bd2 {[%emt 0:03:50]} Nc2 {[%emt 0:00:19]} 18. Bxc2 {[%emt 0:01:22]} dxc2 {[%emt 0:00:05]} 19. Qxc2 {[%emt 0:00:10]} Bb7 {[%emt 0:06:04]} 20. Ba5 {[%emt 0:15:58]} Qd7 {[%emt 0:02:59]} 21. Qc7 {[%emt 0:22:36]} Qxc7 {[%emt 0:00:05]} 22. Bxc7 {[%emt 0:00:10]} Rfe8 {[%emt 0:00:01]} 23. Rad1 {[%emt 0:01:24]} Rac8 {[%emt 0:00:08]} 24. Ba5 {[%emt 0:01:41]} Bf6 {[%emt 0:05:47]} 25. Rxe8+ {[%emt 0:07:18]} Rxe8 {[%emt 0:00:01]} 26. Rd2 {[%emt 0:04:27]} Re4 {[%emt 0:04:10]} 27. Bc7 {[%emt 0:02:22]} Be7 {[%emt 0:00:56]} 28. b3 {[%emt 0:01:44]} Kf8 {[%emt 0:20:19]} 29. g3 {[%emt 0:02:53]} Ke8 {[%emt 0:00:28]} 30. Kf1 {[%emt 0:01:55]} Kd7 {[%emt 0:00:11]} 31. Ba5 {[%emt 0:00:13]} Bf6 {[%emt 0:02:09]} 32. Kg2 {[%emt 0:02:13]} g5 {[%emt 0:00:30]} 33. g4 {[%emt 0:08:07]} h6 {[%emt 0:00:04]} 34. Rd3 {[%emt 0:01:47]} Re8 {[%emt 0:05:06]} 35. Bd2 {[%emt 0:02:06]} Rc8 {[%emt 0:00:10]} 36. Bb4 {[%emt 0:02:08]} Rc2 {[%emt 0:00:19]} 37. a3 {[%emt 0:00:37]} Bd8 {[%emt 0:00:16]} 38. h4 {[%emt 0:02:20]} gxh4 {[%emt 0:00:59]} 39. Bd2 {[%emt 0:00:12]} Rc5 {[%emt 0:00:12]} 40. Kh3 {[%emt 0:00:50]} Rxd5 {[%emt 0:06:45]} 41. Rxd5 {[%emt 0:30:28]} Bxd5 {[%emt 0:30:01]} 42. Nxh4 {[%emt 0:00:13]} Bxh4 {[%emt 0:01:10]} 43. Kxh4 {[%emt 0:00:09]} Bxb3 {[%emt 0:00:03]} 44. Bxh6 {[%emt 0:01:33]} a5 {[%emt 0:00:58]} 45. Bd2 {[%emt 0:00:13]} b4 {[%emt 0:00:04]} 46. axb4 {[%emt 0:00:39]} a4 {[%emt 0:00:01]} 47. Kg5 {[%emt 0:00:24]} Kc6 {[%emt 0:00:57]} 48. Kf6 {[%emt 0:02:06]} Kd5 {[%emt 0:00:07]} 49. Kxf7 {[%emt 0:00:00]} Kc4 {[%emt 0:00:00]} 50. Ke7 {[%emt 0:00:00]} a3 {[%emt 0:00:00]} 51. Bc1 {[%emt 0:00:00]} a2 {[%emt 0:00:00]} 52. Bb2 {[%emt 0:00:00]} d5 {[%emt 0:00:00]} 53. Kd6 {[%emt 0:00:00]} d4 {[%emt 0:00:00]} 54. b5 {[%emt 0:00:00]} d3 {[%emt 0:00:00]} 55. b6 {[%emt 0:00:00]} d2 {[%emt 0:00:00]} 56. b7 {[%emt 0:00:00]} d1=Q+ {[%emt 0:00:10]} 57. Kc7 {[%emt 0:00:00]} Qc2 {[%emt 0:00:00]} 58. b8=Q {[%emt 0:00:00]} Qxb2 {[%emt 0:00:00]} 59. Qg8+ {[%emt 0:00:00]} Kb4 {[%emt 0:00:00]} 60. Qf8+ {[%emt 0:00:00]} Kc3 {[%emt 0:00:00]} 61. Qc5+ {[%emt 0:00:00]} Kd2 {[%emt 0:00:00]} 62. Qe3+ {[%emt 0:00:00]} Kd1 {[%emt 0:00:00]} 63. Qf3+ {[%emt 0:00:00]} Qe2 {[%emt 0:00:00]} 64. Qh1+ {[%emt 0:00:00]} Kc2 {[%emt 0:00:00]} 65. Qh8 {[%emt 0:00:00]} Kb1 {[%emt 0:00:00]} 66. Qh1+ {[%emt 0:00:00]} Bd1 {[%emt 0:00:00]} 67. Qb7+ {[%emt 0:00:00]} Kc1 {[%emt 0:00:00]} 68. Qa7 {[%emt 0:00:00]} Qe5+ {[%emt 0:00:00]} 0-1

[Event "44th Chess Olympiad Open 2022"]
[Site "Chennai"]
[Date "2022.08.05"]
[Round "7.74"]
[White "Al-Burshaid, Ebrahim"]
[Black "Zebaze Dongmo Loic Dylane"]
[Result "0-1"]
[ECO "C17"]
[WhiteElo "1702"]
[BlackElo "1837"]
[Annotator "NA RC COMBH"]
[PlyCount "124"]
[EventDate "2022.07.29"]
[EventType "team-tourn"]
[EventCountry "IND"]
[SourceTitle "playchess.com"]
[Source "ChessBase"]
[SourceQuality "1"]
[WhiteTeam "Brunei"]
[BlackTeam "CMR"]
[WhiteTeamCountry "BRN"]
[TimeControl "40/5400+30:1800+30"]

1. e4 {[%emt 0:00:09]} e6 {[%emt 0:00:30]} 2. d4 {[%emt 0:00:14]} d5 {[%emt 0:00:06]} 3. Nc3 {[%emt 0:00:13]} Bb4 {[%emt 0:00:26]} 4. e5 {[%emt 0:00:13]} c5 {[%emt 0:00:17]} 5. Bd2 {[%emt 0:00:21]} cxd4 {[%emt 0:00:43]} 6. Nb5 {[%emt 0:00:05]} Bf8 {[%emt 0:00:18]} 7. Nf3 {[%emt 0:02:24]} Nc6 {[%emt 0:00:56]} 8. Nbxd4 {[%emt 0:00:48]} Nge7 {[%emt 0:00:16]} 9. Bd3 {[%emt 0:01:17]} Nxd4 {[%emt 0:00:31]} 10. Nxd4 {[%emt 0:00:07]} Nc6 {[%emt 0:00:09]} 11. Nf3 {[%emt 0:00:07]} Nb4 {[%emt 0:00:18]} 12. Be2 {[%emt 0:00:58]} Be7 {[%emt 0:01:29]} 13. O-O {[%emt 0:00:59]} Bd7 {[%emt 0:00:42]} 14. a3 {[%emt 0:02:41]} Nc6 {[%emt 0:00:26]} 15. Bd3 {[%emt 0:00:52]} O-O {[%emt 0:00:51]} 16. Re1 {[%emt 0:01:14]} Qb6 {[%emt 0:00:50]} 17. Qe2 {[%emt 0:00:39]} Rac8 {[%emt 0:03:51]} 18. Be3 {[%emt 0:08:43]} Qc7 {[%emt 0:01:59]} 19. Bg5 {[%emt 0:03:43]} f6 {[%emt 0:03:10]} 20. exf6 {[%emt 0:00:46]} Bxf6 {[%emt 0:00:10]} 21. Bxf6 {[%emt 0:02:50]} Rxf6 {[%emt 0:00:24]} 22. Ne5 {[%emt 0:00:33]} Nxe5 {[%emt 0:01:05]} 23. Qxe5 {[%emt 0:00:09]} Qb6 {[%emt 0:00:20]} 24. Re2 {[%emt 0:03:21]} Rcf8 {[%emt 0:00:41]} 25. Rf1 {[%emt 0:01:06]} Be8 {[%emt 0:14:06]} 26. c4 {[%emt 0:03:59]} Bc6 {[%emt 0:04:34]} 27. b4 {[%emt 0:04:20]} a6 {[%emt 0:06:10]} 28. Qd6 {[%emt 0:21:32]} Qd4 {[%emt 0:00:42]} 29. Bb1 {[%emt 0:03:36]} Qxc4 {[%emt 0:05:37]} 30. Qe5 {[%emt 0:02:54]} Bb5 {[%emt 0:01:32]} 31. Rfe1 {[%emt 0:01:42]} Qg4 {[%emt 0:04:13]} 32. h3 {[%emt 0:04:49]} Qh4 {[%emt 0:02:01]} 33. Rd2 {[%emt 0:04:49]} Kh8 {[%emt 0:03:26]} 34. f3 {[%emt 0:02:31]} Qc4 {[%emt 0:22:06]} 35. Ba2 {[%emt 0:02:23]} Qc6 {[%emt 0:00:00]} 36. Bb1 {[%emt 0:06:18]} Rc8 {[%emt 0:00:34]} 37. Qh5 {[%emt 0:03:51]} h6 {[%emt 0:00:43]} 38. Kh1 {[%emt 0:01:18]} Qc3 {[%emt 0:01:15]} 39. Rdd1 {[%emt 0:05:51]} Qxa3 {[%emt 0:00:20]} 40. Rxe6 {[%emt 0:02:42]} Qb3 {[%emt 0:08:59]} 41. Ree1 {[%emt 0:32:22]} Qxb4 {[%emt 0:33:19]} 42. Qxd5 {[%emt 0:01:01]} Be8 {[%emt 0:05:08]} 43. Ba2 {[%emt 0:00:00]} Bg6 {[%emt 0:00:00]} 44. Rc1 {[%emt 0:00:00]} Rfc6 {[%emt 0:00:00]} 45. Rcd1 {[%emt 0:00:00]} Qc5 {[%emt 0:00:00]} 46. Qd8+ {[%emt 0:00:00]} Qf8 {[%emt 0:00:00]} 47. Qd7 {[%emt 0:00:00]} R6c7 {[%emt 0:00:00]} 48. Qd4 {[%emt 0:00:55]} Re7 {[%emt 0:00:00]} 49. Rxe7 {[%emt 0:02:11]} Qxe7 {[%emt 0:00:00]} 50. Qg4 {[%emt 0:00:10]} Rc6 {[%emt 0:00:00]} 51. Qd4 {[%emt 0:01:38]} Kh7 {[%emt 0:00:00]} 52. h4 {[%emt 0:00:30]} Rc2 {[%emt 0:00:00]} 53. h5 {[%emt 0:00:19]} Bf5 {[%emt 0:00:00]} 54. Bb1 {[%emt 0:00:12]} Rc5 {[%emt 0:00:00]} 55. Bxf5+ {[%emt 0:00:27]} Rxf5 {[%emt 0:00:00]} 56. Qd3 {[%emt 0:01:02]} g6 {[%emt 0:00:58]} 57. hxg6+ {[%emt 0:00:19]} Kxg6 {[%emt 0:00:20]} 58. g4 {[%emt 0:00:12]} Kg5 {[%emt 0:09:09]} 59. Qxf5+ {[%emt 0:00:20]} Kh4 {[%emt 0:00:04]} 60. Qh5+ {[%emt 0:00:35]} Kg3 {[%emt 0:00:05]} 61. Qh2+ {[%emt 0:01:05]} Kxf3 {[%emt 0:00:10]} 62. Rf1+ {[%emt 0:00:27]} Kxg4 {[%emt 0:00:26]} 0-1

[Event "44th Chess Olympiad Open 2022"]
[Site "Chennai"]
[Date "2022.08.05"]
[Round "7.75"]
[White "Alrehaili, Ahmed Abdullah S"]
[Black "Dabuae, David"]
[Result "1-0"]
[ECO "C55"]
[WhiteElo "1986"]
[BlackElo "1707"]
[Annotator "TA"]
[PlyCount "97"]
[EventDate "2022.07.29"]
[EventType "team-tourn"]
[EventCountry "IND"]
[SourceTitle "playchess.com"]
[Source "ChessBase"]
[SourceQuality "1"]
[WhiteTeam "KSA"]
[BlackTeam "NRU"]
[TimeControl "40/5400+30:1800+30"]

{[%evp 14,97,50,18,24,23,38,29,37,33,63,60,81,71,102,88,101,91,128,89,125,97,149,139,272,256,268,250,254,255,260,209,223,202,293,234,231,220,233,200,377,304,374,333,501,492,640,637,662,651,697,677,664,620,587,594,670,693,683,689,794,804,930,910,847,779,722,729,1467,1462,1447,1343,1250,906,1617,1582,4862,2341,2283,1930,5410,1114,5306,5214,1963,1174]} 1. e4 {[%emt 0:00:04]} e5 {[%emt 0:00:04]} 2. Nf3 {[%emt 0:00:31]} Nc6 {[%emt 0:00:08]} 3. Bc4 {[%emt 0:00:08]} Be7 {[%emt 0:00:14]} 4. d3 {[%emt 0:00:17]} Nf6 {[%emt 0:00:09]} 5. O-O {[%emt 0:00:07]} O-O {[%emt 0:00:04]} 6. Re1 {[%emt 0:00:08]} d6 {[%emt 0:00:12]} 7. c3 {[%emt 0:00:04]} h6 {[%emt 0:01:07]} 8. Nbd2 {[%emt 0:00:38][%cal Bb1d2,Bd2f1,Bf1g3][%mdl 32]} Na5 {[%emt 0:00:40] C55: Two Knights: 4 d3, 4 d4 exd4 5 e5 and Max Lange Attack.} 9. Bb5 {[%emt 0:00:03]} c6 {[%emt 0:00:35]} 10. Ba4 {[%emt 0:00:02]} b5 {[%emt 0:00:31] White has an edge.} 11. Bc2 {[%emt 0:00:03]} Bg4 {[%emt 0:00:49]} 12. h3 {[%emt 0:01:18]} Bh5 {[%emt 0:00:05]} 13. Nf1 {[%emt 0:02:52]} Qc7 {[%emt 0:00:31]} 14. Ng3 {[%emt 0:00:28]} Bg6 {[%emt 0:00:05] [#]} 15. Nh4 $146 {[%emt 0:00:33]} ({Predecessor:} 15. a4 a6 16. Nh4 Nh7 17. Nxg6 fxg6 18. Qg4 Bg5 19. axb5 cxb5 20. Qe6+ Kh8 21. Qxg6 {1-0 (52) Areshchenko,A (2650)-Khadzh Khamed,N (2000) Alushta 2008}) 15... Nh7 {[%emt 0:02:21]} 16. Nhf5 {[%emt 0:08:33]} Bf6 {[%emt 0:00:22]} 17. h4 {[%emt 0:01:27] White is more active.} Rad8 {[%emt 0:01:00]} (17... c5 $142) 18. Qg4 {[%emt 0:02:46]} Qd7 {[%emt 0:03:50]} (18... Kh8 $16 {might work better.} 19. a4 Bxf5 20. Nxf5 h5) 19. a4 $18 {[%emt 0:03:18] Black must now prevent axb5.} b4 {[%emt 0:08:15]} 20. cxb4 {[%emt 0:00:41]} Nb7 {[%emt 0:00:07]} 21. Be3 {[%emt 0:00:35]} c5 {[%emt 0:02:31]} 22. Bb3 {[%emt 0:06:16]} Kh8 {[%emt 0:00:38]} 23. b5 {[%emt 0:03:00]} Rg8 {[%emt 0:09:14]} (23... Bxf5 $142 24. Nxf5 h5) 24. h5 {[%emt 0:02:37]} Bxf5 {[%emt 0:00:29]} 25. Qxf5 {[%emt 0:00:11]} ({Don't play} 25. Nxf5 Bg5 26. Rf1 Nf6) 25... Qe7 {[%emt 0:00:50]} 26. a5 {[%emt 0:03:21] Threatens to win with a6.} Rdf8 $2 (26... Rb8 27. b6 Nd8) 27. Bd5 {[%emt 0:00:00]} Nd8 {[%emt 0:02:10]} 28. b6 {[%emt 0:01:58]} Ng5 {[%emt 0:07:40]} (28... Bg5 $142 29. a6 Ne6) 29. bxa7 {[%emt 0:04:32] White is clearly winning.} Qxa7 {[%emt 0:03:07]} 30. b4 {[%emt 0:00:08][%cal Bb2b4,Bb4b5,Bb5b6][%mdl 32]} Nde6 {[%emt 0:01:04]} 31. b5 {[%emt 0:02:13]} Nf4 {[%emt 0:00:17]} 32. b6 {[%emt 0:00:43]} Qe7 {[%emt 0:00:42]} 33. Bxf4 {[%emt 0:00:48]} exf4 {[%emt 0:00:09] [#]} 34. Qxf4 {[%emt 0:00:06]} Be5 {[%emt 0:03:09] [#]} (34... Bxa1 35. Rxa1) 35. Qd2 {[%emt 0:01:41]} Qf6 {[%emt 0:00:27]} 36. Ra3 {[%emt 0:01:00]} Ne6 {[%emt 0:01:06]} 37. a6 {[%emt 0:02:07]} Bd4 {[%emt 0:05:24]} 38. a7 {[%emt 0:01:15]} c4 {[%emt 0:00:07]} 39. a8=Q {[%emt 0:01:40]} Rxa8 {[%emt 0:00:42]} 40. Rxa8 {[%emt 0:00:51]} c3 {[%emt 0:01:41]} 41. Rxg8+ {[%emt 0:30:10]} Kxg8 {[%emt 0:32:06]} 42. Qa2 {[%emt 0:00:00] b7 is the strong threat.} Bxb6 {[%emt 0:01:18]} 43. Bxe6 {[%emt 0:00:10]} fxe6 {[%emt 0:00:30]} 44. e5 {[%emt 0:00:17]} dxe5 {[%emt 0:06:12]} 45. Ne4 {[%emt 0:00:24]} Qf5 {[%emt 0:00:41]} 46. Nxc3 {[%emt 0:01:16]} Bd4 {[%emt 0:01:19]} 47. Qa8+ {[%emt 0:00:13]} Kh7 {[%emt 0:00:19]} 48. Ne4 {[%emt 0:00:12] Threatening mate with Rb1.} Qxh5 {[%emt 0:00:19]} 49. Qf8 {[%emt 0:00:53] Black did not feel at home in the position after the opening.  Weighted Error Value: White=0.17 (very precise) /Black=0.41} 1-0